bitfinex/quotes_SOLUSD_20250601
["timestamp","ask_amount","ask_price","bid_price","bid_amount"]
[1748742489701,14.58009092,155.6,155.59,42.66710217]
[1748742489905,14.58009092,155.6,155.59,36.24]
[1748742492029,14.58009092,155.6,155.59,10.24]
[1748742492421,29.16018184,155.6,155.59,10.24]
[1748742492929,29.16018184,155.6,155.55,42.66839227]
[1748742493119,14.58009092,155.56,155.55,42.66839227]
[1748742493527,14.58009092,155.57,155.55,42.66839227]
[1748742493835,1.5059,155.63,155.55,42.66839227]
[1748742493836,14.58009092,155.58,155.55,42.66839227]
[1748742494708,14.58009092,155.6,155.56,18.79181043]
[1748742495305,14.58009092,155.59,155.56,18.79181043]
[1748742495508,14.58009092,155.59,155.55,58.74039484]
[1748742497237,6.42616815,155.62,155.57,26.0]
[1748742497441,6.42616815,155.62,155.55,42.66839227]
[1748742497442,14.58009092,155.58,155.55,42.66839227]
[1748742497619,14.58009092,155.57,155.55,42.66839227]
[1748742497929,14.58009092,155.58,155.55,42.66839227]
[1748742509436,14.58009092,155.56,155.55,16.66839227]
[1748742509643,14.58009092,155.56,155.55,10.24]
[1748742509832,14.58009092,155.56,155.52,98.92989072]
[1748742510029,14.58009092,155.53,155.52,98.92989072]
[1748742510234,14.58009092,155.55,155.52,98.92989072]
[1748742510427,14.58009092,155.57,155.54,26.0]
[1748742510637,14.58009092,155.58,155.55,26.0]
[1748742510949,14.58009092,155.57,155.56,10.24]
[1748742511333,14.58009092,155.57,155.56,16.66838776]
[1748742513558,14.58009092,155.58,155.56,32.73935716]
[1748742513755,165.05851886,155.69,155.56,32.73935716]
[1748742513756,14.58009092,155.59,155.56,32.73935716]
[1748742514057,14.58009092,155.6,155.58,26.0]
[1748742514630,14.58009092,155.61,155.58,26.0]
[1748742515026,14.58009092,155.61,155.59,26.0]
[1748742515736,14.58009092,155.61,155.6,6.42673521]
[1748742516339,14.58009092,155.61,155.58,6.42728806]
[1748742516660,14.58009092,155.59,155.58,32.42728806]
[1748742524260,14.58009092,155.59,155.58,26.0]
[1748742524761,14.58009092,155.59,155.57,6.42785676]
[1748742524949,14.58009092,155.58,155.57,6.42785676]
[1748742531355,14.58009092,155.59,155.57,6.42785676]
[1748742534352,188.4,155.66,155.57,6.42785676]
[1748742534353,14.58009092,155.61,155.57,24.06709312]
[1748742535578,14.58009092,155.6,155.57,24.06709312]
[1748742536967,14.58009092,155.58,155.57,6.42785676]
[1748742538986,14.58009092,155.58,155.56,42.66822297]
[1748742539976,14.58009092,155.57,155.56,10.24]
[1748742540174,14.58009092,155.57,155.56,16.66838776]
[1748742540479,6.4260342,155.62,155.56,16.66838776]
[1748742540663,14.58009092,155.57,155.56,16.66838776]
[1748742544168,14.58009092,155.57,155.56,10.24]
[1748742544671,14.58009092,155.57,155.56,16.66823675]
[1748742545562,14.58009092,155.57,155.56,10.24]
[1748742545873,14.58009092,155.57,155.56,16.66838776]
[1748742547064,39.4,155.62,155.56,16.66838776]
[1748742547261,14.58009092,155.57,155.56,16.66838776]
[1748742550169,14.58009092,155.57,155.56,10.24]
[1748742556386,6.4268668,155.6,155.56,10.24]
[1748742556713,14.58009092,155.57,155.56,10.24]
[1748742557889,14.58009092,155.57,155.56,16.66838776]
[1748742560899,9.30766738,155.57,155.56,16.66838776]
[1748742565591,6.42590926,155.62,155.56,16.66838776]
[1748742565804,9.30766738,155.57,155.56,16.66838776]
[1748742572387,156.7253,155.64,155.56,16.66838776]
[1748742572607,9.30766738,155.6,155.56,16.66838776]
[1748742573403,9.30766738,155.6,155.56,32.73935716]
[1748742574484,9.30766738,155.59,155.56,32.73935716]
[1748742575114,149.0,155.64,155.57,26.0]
[1748742575294,9.30766738,155.62,155.57,27.6406]
[1748742576986,9.30766738,155.62,155.58,6.42756138]
[1748742577611,9.30766738,155.62,155.58,22.49646483]
[1748742578185,9.30766738,155.62,155.58,61.87646483]
[1748742580896,13.60693178,155.66,155.58,61.87646483]
[1748742581096,9.30766738,155.62,155.58,61.87646483]
[1748742582313,9.30766738,155.61,155.6,26.0]
[1748742582731,6.4247767,155.65,155.6,26.0]
[1748742583022,9.30766738,155.61,155.6,26.0]
[1748742584324,9.30766738,155.61,155.6,32.42673521]
[1748742585197,9.30766738,155.61,155.6,26.0]
[1748742586527,6.42467073,155.65,155.6,26.0]
[1748742586703,9.30766738,155.61,155.6,26.0]
[1748742592431,9.30766738,155.61,155.59,26.0]
[1748742592729,9.30766738,155.6,155.59,26.0]
[1748742594326,9.30766738,155.61,155.59,26.0]
[1748742594927,9.30766738,155.61,155.59,42.64693584]
[1748742595630,9.30766738,155.6,155.59,36.22]
[1748742597239,9.30766738,155.6,155.59,10.22]
[1748742601316,9.30766738,155.6,155.56,26.0]
[1748742601513,9.30766738,155.57,155.56,26.0]
[1748742605556,9.30766738,155.57,155.55,16.64867036]
[1748742605732,9.30766738,155.56,155.55,10.22]
[1748742606425,9.30766738,155.56,155.52,6.42996426]
[1748742606626,9.30766738,155.53,155.52,6.42996426]
[1748742613039,9.30766738,155.56,155.52,6.42996426]
[1748742614864,9.30766738,155.57,155.52,22.50506714]
[1748742615067,9.30766738,155.57,155.53,1.5662]
[1748742615862,9.30766738,155.57,155.54,6.42921435]
[1748742616565,9.30766738,155.57,155.55,10.22]
[1748742618162,9.30766738,155.57,155.56,6.42838776]
[1748742623054,9.30766738,155.57,155.55,10.22]
[1748742623254,9.30766738,155.56,155.55,10.22]
[1748742625272,9.30766738,155.56,155.53,6.4293288]
[1748742625447,9.30766738,155.54,155.53,6.4293288]
[1748742626782,9.30766738,155.54,155.52,6.43004115]
[1748742626948,9.30766738,155.55,155.52,22.50514403]
[1748742627154,9.30766738,155.56,155.52,22.50514403]
[1748742627859,10.09439207,155.61,155.52,22.50514403]
[1748742627860,9.30766738,155.57,155.52,22.50514403]
[1748742628178,9.30766738,155.57,155.53,1.5115]
[1748742628563,10.09439207,155.61,155.54,48.50225022]
[1748742628778,9.30766738,155.58,155.54,48.50225022]
[1748742628951,9.30766738,155.59,155.54,48.50225022]
[1748742629151,9.30766738,155.6,155.57,26.0]
[1748742629351,9.30766738,155.61,155.57,36.2]
[1748742630471,9.30766738,155.6,155.58,6.42756138]
[1748742630672,14.53691142,155.59,155.58,6.42756138]
[1748742631966,6.42477426,155.65,155.58,6.42756138]
[1748742632154,14.53691142,155.59,155.58,6.42756138]
[1748742633083,14.53691142,155.6,155.58,6.42756138]
[1748742633760,6.42433584,155.66,155.58,6.42756138]
[1748742633961,14.53691142,155.61,155.58,6.42756138]
[1748742635511,14.53691142,155.59,155.58,6.42756138]
[1748742636357,14.53691142,155.59,155.57,10.2]
[1748742636599,14.53691142,155.58,155.57,10.2]
[1748742636961,14.53691142,155.58,155.54,6.42915445]
[1748742637175,14.53691142,155.55,155.54,6.42915445]
[1748742642885,14.53691142,155.56,155.54,6.42915445]
[1748742646776,14.53691142,155.55,155.54,6.42915445]
[1748742654012,14.53691142,155.56,155.54,6.42915445]
[1748742654588,14.53691142,155.59,155.54,24.03429032]
[1748742655402,1.5971,155.65,155.56,26.0]
[1748742655724,14.53691142,155.6,155.56,26.0]
[1748742657001,14.53691142,155.61,155.57,6.42797454]
[1748742657313,14.53691142,155.61,155.58,10.2]
[1748742658885,14.53691142,155.59,155.58,10.2]
[1748742659086,14.53691142,155.59,155.58,16.62756138]
[1748742659286,14.53691142,155.59,155.58,10.2]
[1748742660328,20.96405969,155.59,155.54,10.2]
[1748742660620,14.53691142,155.55,155.5,11.7049]
[1748742660791,14.53691142,155.51,155.5,44.13576816]
[1748742661518,14.53691142,155.51,155.5,42.63086816]
[1748742661892,14.53691142,155.51,155.5,36.2]
[1748742663694,14.53691142,155.51,155.5,42.63086816]
[1748742665904,14.53691142,155.51,155.5,10.2]
[1748742669104,14.53691142,155.51,155.46,128.74]
[1748742669105,20.96743486,155.51,155.46,128.74]
[1748742669413,14.53691142,155.47,155.46,102.74]
[1748742673892,14.53691142,155.47,155.46,109.17252283]
[1748742675017,14.53691142,155.48,155.46,109.17252283]
[1748742676200,14.53691142,155.47,155.46,109.17252283]
[1748742677540,14.53691142,155.47,155.46,10.2]
[1748742677691,39.64432314,155.52,155.46,10.2]
[1748742677895,14.53691142,155.47,155.46,10.2]
[1748742679220,14.53691142,155.47,155.46,16.63252283]
[1748742679720,14.53691142,155.48,155.46,16.63252283]
[1748742680017,14.53691142,155.49,155.46,32.71382991]
[1748742680543,14.53691142,155.49,155.46,16.63252283]
[1748742681196,14.53691142,155.48,155.46,16.63252283]
[1748742681524,14.53691142,155.47,155.46,10.2]
[1748742685628,14.53691142,155.47,155.45,1.6059]
[1748742685820,14.53691142,155.46,155.45,1.6059]
[1748742690127,14.53691142,155.46,155.43,0.06153827]
[1748742690332,14.53691142,155.44,155.43,0.06153827]
[1748742690558,29.07382284,155.44,155.43,0.06153827]
[1748742691406,14.53691142,155.44,155.43,0.06153827]
[1748742696930,22.51113964,155.48,155.43,0.06153827]
[1748742697239,14.53691142,155.44,155.43,0.06153827]
[1748742699339,14.53691142,155.44,155.43,0.0120775]
[1748742703257,35.50717332,155.44,155.43,0.0120775]
[1748742704171,35.50717332,155.44,155.38,10.2]
[1748742704380,14.53691142,155.39,155.38,10.2]
[1748742709550,14.53691142,155.39,155.38,5.37445263]
[1748742709977,14.53691142,155.39,155.38,11.81028735]
[1748742710684,14.53691142,155.39,155.38,5.37445263]
[1748742710869,14.53691142,155.39,155.36,1.6598]
[1748742711073,14.53691142,155.37,155.36,1.6598]
[1748742712774,14.53691142,155.37,155.36,8.09646323]
[1748742715968,14.53691142,155.37,155.36,6.43666323]
[1748742720973,14.53691142,155.38,155.36,22.52832131]
[1748742721378,14.53691142,155.4,155.36,22.52832131]
[1748742721877,14.53691142,155.39,155.36,22.52832131]
[1748742722687,14.53691142,155.37,155.36,6.43666323]
[1748742723195,14.53691142,155.37,155.35,1.6233]
[1748742723380,14.53691142,155.36,155.35,1.6233]
[1748742723968,14.53691142,155.36,155.34,16.63733862]
[1748742724175,14.53691142,155.36,155.34,10.2]
[1748742725801,14.53691142,155.35,155.31,1.5835]
[1748742725976,14.53691142,155.32,155.31,1.5835]
[1748742726797,14.53691142,155.32,155.31,8.02216575]
[1748742728395,14.53691142,155.32,155.31,6.43866575]
[1748742730586,188.66432314,155.4,155.31,6.43866575]
[1748742730787,14.53691142,155.34,155.31,6.43866575]
[1748742732202,14.53691142,155.34,155.31,22.53550433]
[1748742737498,14.53691142,155.34,155.31,6.43866575]
[1748742740319,14.53691142,155.33,155.32,26.0]
[1748742748618,14.53691142,155.33,155.3,51.40537308]
[1748742748923,14.53691142,155.32,155.3,19.17747308]
[1748742750030,14.53691142,155.32,155.3,12.73848853]
[1748742750222,14.53691142,155.31,155.3,12.73848853]
[1748742750425,6.43721927,155.35,155.3,12.73848853]
[1748742750632,14.53691142,155.31,155.3,12.73848853]
[1748742754843,14.53691142,155.31,155.3,19.17763856]
[1748742755055,14.53691142,155.32,155.3,19.17763856]
[1748742755919,14.53691142,155.32,155.3,45.17763856]
[1748742756121,14.53691142,155.33,155.3,45.17763856]
[1748742756530,14.53691142,155.34,155.3,45.17763856]
[1748742756834,14.53691142,155.35,155.3,45.17763856]
[1748742757330,14.53691142,155.34,155.3,45.17763856]
[1748742758134,14.53691142,155.34,155.3,61.27551364]
[1748742759332,14.53691142,155.34,155.31,1.5044]
[1748742760142,14.53691142,155.34,155.32,16.63832088]
[1748742761250,14.53691142,155.33,155.32,16.63832088]
[1748742764657,14.53691142,155.34,155.32,16.63832088]
[1748742772755,9.33448553,155.34,155.32,16.63832088]
[1748742778658,9.33448553,155.33,155.32,16.63832088]
[1748742780573,9.33448553,155.33,155.32,10.2]
[1748742780951,9.33448553,155.33,155.3,2.53848853]
[1748742781152,6.43745439,155.35,155.3,8.97758141]
[1748742781153,9.33448553,155.31,155.3,8.97758141]
[1748742782466,9.33448553,155.31,155.3,2.53848853]
[1748742785893,63.27532096,155.31,155.3,2.53848853]
[1748742786076,63.27532096,155.31,155.22,6.44246875]
[1748742786277,63.27532096,155.31,155.23,26.0]
[1748742786278,9.33448553,155.26,155.23,26.0]
[1748742786597,9.33448553,155.26,155.24,32.44163875]
[1748742786784,14.59901287,155.26,155.24,32.44163875]
[1748742788407,64.8883153,155.31,155.24,32.44163875]
[1748742788600,14.59901287,155.28,155.24,34.07283875]
[1748742788902,14.59901287,155.28,155.25,10.18]
[1748742790084,14.59901287,155.28,155.26,6.44080896]
[1748742790886,14.59901287,155.27,155.26,6.44080896]
[1748742791087,14.59901287,155.27,155.25,16.62111474]
[1748742791405,14.59901287,155.26,155.25,16.62111474]
[1748742792087,14.59901287,155.26,155.25,10.18]
[1748742793278,14.59901287,155.26,155.22,32.4423766]
[1748742793495,14.59901287,155.24,155.22,32.4423766]
[1748742794491,6.44039623,155.27,155.22,32.4423766]
[1748742794695,14.59901287,155.24,155.22,32.4423766]
[1748742794902,14.59901287,155.23,155.21,0.41801094]
[1748742795216,6.44039415,155.27,155.21,0.41801094]
[1748742795217,14.59901287,155.22,155.21,0.41801094]
[1748742795518,39.36,155.24,155.21,0.41801094]
[1748742795686,0.28432314,155.26,155.21,0.41801094]
[1748742795888,14.59901287,155.22,155.21,0.41801094]
[1748742796195,14.59901287,155.24,155.21,6.86083237]
[1748742796414,14.59901287,155.22,155.21,0.41801094]
[1748742799524,14.59901287,155.23,155.21,6.86089477]
[1748742799712,14.59901287,155.23,155.21,17.04089477]
[1748742801315,14.59901287,155.24,155.21,17.04089477]
[1748742802040,26.0,155.25,155.21,0.41801094]
[1748742802325,55.19802574,155.22,155.19,0.798635]
[1748742802635,14.59901287,155.2,155.19,0.798635]
[1748742803015,41.88,155.21,155.19,0.798635]
[1748742803218,14.59901287,155.2,155.19,0.798635]
[1748742803925,41.88,155.21,155.19,0.798635]
[1748742804112,14.59901287,155.2,155.19,0.798635]
[1748742805432,29.19802574,155.2,155.19,0.798635]
[1748742806113,14.59901287,155.2,155.19,0.798635]
[1748742806323,29.19802574,155.2,155.19,0.798635]
[1748742806525,36.61927593,155.37,155.23,26.0]
[1748742806711,14.59901287,155.26,155.24,11.66]
[1748742806913,19.14967661,155.27,155.24,11.66]
[1748742807133,4.55066374,155.27,155.24,11.66]
[1748742807428,19.14967661,155.27,155.24,18.10159334]
[1748742808542,14.59901287,155.26,155.24,18.10159334]
[1748742809343,14.59901287,155.25,155.24,18.10159334]
[1748742810409,14.59901287,155.26,155.24,18.10159334]
[1748742811536,14.59901287,155.25,155.24,18.10159334]
[1748742812539,26.0,155.29,155.19,0.798635]
[1748742813036,14.59901287,155.22,155.19,0.798635]
[1748742813344,14.59901287,155.22,155.2,6.44329896]
[1748742813535,14.59901287,155.23,155.2,6.44329896]
[1748742814023,14.59901287,155.23,155.2,8.09579896]
[1748742814339,6.4404203,155.27,155.2,8.09579896]
[1748742814534,14.59901287,155.21,155.2,1.6525]
[1748742814732,14.59901287,155.21,155.19,0.798635]
[1748742814923,14.59901287,155.2,155.19,0.798635]
[1748742817048,61.6413247,155.2,155.05,1.5609]
[1748742817254,14.59901287,155.13,155.07,6.44870058]
[1748742817463,0.28432314,155.19,155.06,12.52]
[1748742817464,26.0,155.14,155.06,12.52]
[1748742817756,26.0,155.12,155.01,29.90760772]
[1748742817938,14.59901287,155.07,155.01,29.90760772]
[1748742818130,14.59901287,155.06,155.01,55.90760772]
[1748742818443,14.59901287,155.07,155.02,2.03848853]
[1748742818643,14.59901287,155.07,155.03,6.45036444]
[1748742818850,14.59901287,155.09,155.03,32.45036444]
[1748742819045,14.59901287,155.09,155.03,40.45756444]
[1748742819355,26.0,155.1,155.03,1.5609]
[1748742819536,0.28432314,155.08,155.03,1.5609]
[1748742819923,0.14216157,155.08,155.03,1.5609]
[1748742820149,14.59901287,155.06,155.03,1.5609]
[1748742820339,26.0,155.11,155.03,1.5609]
[1748742820530,0.28432314,155.13,155.04,6.4499484]
[1748742820531,26.28432314,155.13,155.04,6.4499484]
[1748742820736,26.0,155.13,155.05,15.56]
[1748742821029,26.0,155.12,155.03,6.45031204]
[1748742821530,14.59901287,155.07,155.03,6.45031204]
[1748742821729,14.59901287,155.08,155.03,6.45031204]
[1748742821962,26.0,155.12,155.03,6.45031204]
[1748742822129,14.59901287,155.09,155.03,6.45031204]
[1748742822335,14.59901287,155.08,155.03,6.45031204]
[1748742822533,14.59901287,155.07,155.03,6.45031204]
[1748742822731,0.28432314,155.11,155.03,6.45031204]
[1748742823054,14.59901287,155.08,155.03,6.45031204]
[1748742823292,26.0,155.11,155.03,6.45031204]
[1748742823450,14.59901287,155.1,155.03,6.45031204]
[1748742823649,14.59901287,155.11,155.04,18.79181043]
[1748742824248,11.69871339,155.15,155.04,18.79181043]
[1748742824449,14.59901287,155.12,155.05,0.14216157]
[1748742824960,37.69871339,155.15,155.05,0.14216157]
[1748742825349,14.59901287,155.11,155.06,6.44911647]
[1748742826642,21.94313805,155.11,155.06,6.44911647]
[1748742827143,26.0,155.15,155.06,6.44911647]
[1748742827463,21.94313805,155.12,155.06,6.44911647]
[1748742828356,26.0,155.15,155.06,6.44911647]
[1748742828761,21.94313805,155.12,155.06,6.44911647]
[1748742829345,21.94313805,155.11,155.06,6.44911647]
[1748742829661,21.94313805,155.09,155.05,32.44945581]
[1748742829853,21.94313805,155.1,155.05,32.44945581]
[1748742830437,6.44624171,155.13,155.05,32.44945581]
[1748742830639,21.94313805,155.1,155.05,32.44945581]
[1748742830838,6.44624171,155.13,155.05,32.44945581]
[1748742831046,21.94313805,155.1,155.05,32.44945581]
[1748742833254,6.44624171,155.13,155.05,32.44945581]
[1748742833566,21.94313805,155.1,155.05,32.44945581]
[1748742833741,6.44624171,155.13,155.05,32.44945581]
[1748742833940,21.94313805,155.11,155.05,32.44945581]
[1748742834359,6.73011403,155.14,155.05,32.44945581]
[1748742834549,21.94313805,155.11,155.05,32.44945581]
[1748742834951,6.44579089,155.14,155.05,32.44945581]
[1748742835242,21.94313805,155.11,155.05,32.44945581]
[1748742835742,6.44579089,155.14,155.05,6.44945581]
[1748742835962,21.94313805,155.11,155.05,6.44945581]
[1748742836168,21.94313805,155.12,155.05,22.57328683]
[1748742836771,21.94313805,155.12,155.06,24.95921043]
[1748742836946,21.94313805,155.13,155.06,26.61351043]
[1748742837565,21.94313805,155.12,155.06,26.61351043]
[1748742837872,21.94313805,155.13,155.07,6.44870058]
[1748742838072,21.94313805,155.12,155.07,6.44870058]
[1748742838973,21.94313805,155.08,155.06,8.1032764]
[1748742839155,21.94313805,155.08,155.06,1.6543]
[1748742839478,21.94313805,155.09,155.06,8.10332311]
[1748742840246,21.94313805,155.1,155.06,8.10332311]
[1748742841482,26.0,155.15,155.06,8.10332311]
[1748742841855,21.94313805,155.12,155.06,8.10332311]
[1748742842294,26.0,155.15,155.06,8.10332311]
[1748742842894,21.94313805,155.12,155.06,8.10332311]
[1748742843298,32.44552849,155.15,155.06,8.10332311]
[1748742843472,21.94313805,155.11,155.06,8.10332311]
[1748742844071,32.44552849,155.15,155.06,8.10332311]
[1748742844273,21.94313805,155.11,155.06,8.10332311]
[1748742845476,21.94313805,155.11,155.06,24.78332311]
[1748742846000,6.44581702,155.14,155.06,24.78332311]
[1748742846001,21.94313805,155.12,155.06,24.78332311]
[1748742846695,14.62643396,155.12,155.06,24.78332311]
[1748742847686,14.62643396,155.11,155.06,24.78332311]
[1748742848503,14.62643396,155.12,155.06,24.78332311]
[1748742848892,6.44581702,155.14,155.06,24.78332311]
[1748742849196,14.62643396,155.12,155.06,24.78332311]
[1748742850299,32.44564469,155.15,155.06,24.78332311]
[1748742850481,14.62643396,155.12,155.06,24.78332311]
[1748742851582,14.62643396,155.12,155.06,40.90611428]
[1748742852302,160.6842723,155.18,155.07,18.79181043]
[1748742852490,14.62643396,155.15,155.07,18.79181043]
[1748742853106,14.62643396,155.15,155.08,22.56899664]
[1748742853710,7.8362,155.19,155.11,26.0]
[1748742853883,14.62643396,155.19,155.11,26.0]
[1748742854210,14.62643396,155.15,155.11,26.0]
[1748742855004,14.62643396,155.14,155.11,26.0]
[1748742855213,14.62643396,155.14,155.11,32.44686876]
[1748742855507,14.62643396,155.13,155.09,6.44786897]
[1748742855680,14.62643396,155.12,155.09,6.44786897]
[1748742856004,14.62643396,155.13,155.09,6.44786897]
[1748742860584,14.62643396,155.12,155.09,6.44786897]
[1748742860785,14.62643396,155.13,155.09,6.44786897]
[1748742861601,14.62643396,155.12,155.09,6.44786897]
[1748742862297,14.62643396,155.13,155.08,6.44828475]
[1748742863589,14.62643396,155.11,155.08,6.44828475]
[1748742864090,6.44589339,155.14,155.08,6.44828475]
[1748742864295,14.62643396,155.12,155.08,6.44828475]
[1748742865012,14.62643396,155.11,155.08,6.44828475]
[1748742865587,6.44496004,155.16,155.07,6.44870058]
[1748742865891,14.62643396,155.11,155.07,6.44870058]
[1748742867025,14.62643396,155.1,155.07,6.44870058]
[1748742867318,14.62643396,155.09,155.07,6.44870058]
[1748742870311,14.62643396,155.08,155.06,16.68]
[1748742870612,21.15243396,155.12,155.03,6.45029064]
[1748742870613,14.62643396,155.07,155.03,6.45029064]
[1748742870910,14.62643396,155.06,155.03,6.45029064]
[1748742871819,6.44791641,155.09,155.03,6.45029064]
[1748742872111,14.62643396,155.07,155.03,6.45029064]
[1748742872921,14.62643396,155.06,155.01,118.82]
[1748742873102,14.62643396,155.04,155.01,92.82]
[1748742873936,6.44915527,155.06,154.98,18.64964886]
[1748742874129,26.0,155.05,154.95,1.5956]
[1748742874296,0.28432314,155.04,154.93,28.37571303]
[1748742874498,49.42,155.03,154.93,28.37571303]
[1748742874713,49.70432314,155.03,154.93,28.37571303]
[1748742874898,70.78112154,155.03,154.93,21.9212]
[1748742875092,70.78112154,155.03,154.94,6.45409953]
[1748742875301,70.78112154,155.03,154.95,6.45359742]
[1748742875302,70.4967984,155.03,154.95,6.45359742]
[1748742875700,55.87036444,155.03,154.94,6.45406902]
[1748742875906,70.4967984,155.03,154.95,6.4535816]
[1748742876428,26.28432314,154.98,154.87,0.8736372]
[1748742876596,3.35285542,154.95,154.87,0.8736372]
[1748742877003,26.0,154.9,154.87,0.8736372]
[1748742877406,26.0,154.88,154.87,0.8736372]
[1748742877727,26.0,154.88,154.73,28.38116627]
[1748742877898,33.14862396,154.88,154.73,28.38116627]
[1748742878094,26.0,154.85,154.73,28.38116627]
[1748742878716,26.0,154.85,154.73,21.91848853]
[1748742878901,32.45870319,154.83,154.73,2.53848853]
[1748742879103,26.0,154.8,154.73,2.53848853]
[1748742879924,25.88007138,154.79,154.73,2.53848853]
[1748742880224,51.59574824,154.79,154.73,2.53848853]
[1748742880403,18.933972,154.78,154.73,2.53848853]
[1748742880801,0.28432314,154.78,154.73,2.53848853]
[1748742881233,26.0,154.79,154.73,2.53848853]
[1748742881736,22.0343071,154.75,154.73,2.53848853]
[1748742881915,0.14216157,154.82,154.74,7.8442]
[1748742882224,6.45764969,154.86,154.74,7.8442]
[1748742882397,6.45651431,154.89,154.74,7.8442]
[1748742882599,28.49082141,154.89,154.74,7.8442]
[1748742883026,28.49082141,154.89,154.75,6.46203554]
[1748742883215,26.0,154.86,154.75,6.46203554]
[1748742883523,22.0343071,154.8,154.75,6.46203554]
[1748742883711,22.0343071,154.79,154.75,6.46203554]
[1748742883908,26.0,154.86,154.75,6.46203554]
[1748742884508,22.0343071,154.83,154.75,6.46203554]
[1748742884711,22.0343071,154.78,154.75,6.46203554]
[1748742884908,32.45767289,154.86,154.75,6.46203554]
[1748742885313,26.0,154.86,154.75,6.46203554]
[1748742885835,22.0343071,154.81,154.75,6.46203554]
[1748742886007,26.0,154.86,154.75,6.46203554]
[1748742886208,30.49114644,154.88,154.76,18.64964886]
[1748742886421,22.0343071,154.82,154.76,18.64964886]
[1748742886901,22.0343071,154.81,154.75,16.15508885]
[1748742887102,0.28432314,154.87,154.75,26.0]
[1748742887301,32.45666437,154.88,154.75,32.46172552]
[1748742887524,32.45666437,154.88,154.76,18.64964886]
[1748742887701,22.0343071,154.82,154.76,18.64964886]
[1748742887913,26.0,154.88,154.76,18.64964886]
[1748742888426,22.0343071,154.83,154.76,18.64964886]
[1748742888625,22.0343071,154.82,154.76,18.64964886]
[1748742889043,8.41346229,154.91,154.78,18.64964886]
[1748742889240,22.0343071,154.86,154.78,44.64964886]
[1748742889740,8.12913915,154.91,154.78,44.64964886]
[1748742889741,22.0343071,154.85,154.78,44.64964886]
[1748742889915,6.45537307,154.91,154.78,44.64964886]
[1748742890119,22.0343071,154.83,154.78,44.64964886]
[1748742890325,22.0343071,154.84,154.78,44.64964886]
[1748742890507,22.0343071,154.89,154.78,44.64964886]
[1748742890712,22.0343071,154.83,154.78,44.64964886]
[1748742891138,22.0343071,154.83,154.79,6.46036565]
[1748742891830,22.0343071,154.84,154.79,6.46036565]
[1748742892035,22.0343071,154.83,154.79,6.46036565]
[1748742892530,22.0343071,154.82,154.79,6.46036565]
[1748742892730,28.49051977,154.89,154.79,6.46036565]
[1748742892909,22.0343071,154.82,154.79,6.46036565]
[1748742893233,28.49051977,154.89,154.77,16.15300122]
[1748742893234,6.45621267,154.89,154.77,22.61420171]
[1748742893523,22.0343071,154.84,154.77,22.61420171]
[1748742893730,6.45621267,154.89,154.77,22.61420171]
[1748742893917,22.0343071,154.85,154.78,18.64964886]
[1748742894111,26.0,154.89,154.78,18.64964886]
[1748742894304,26.0,154.89,154.77,22.61420171]
[1748742894305,22.0343071,154.8,154.77,6.46120049]
[1748742894504,26.0,154.89,154.77,6.46120049]
[1748742894730,22.0343071,154.83,154.77,6.46120049]
[1748742894926,32.74014289,154.9,154.77,22.61420171]
[1748742895128,26.0,154.89,154.78,18.64964886]
[1748742895335,22.0343071,154.85,154.78,18.64964886]
[1748742895513,6.45627331,154.89,154.78,18.64964886]
[1748742895831,22.0343071,154.84,154.78,18.64964886]
[1748742896030,22.0343071,154.82,154.78,1.6164]
[1748742896414,28.49058041,154.89,154.78,1.6164]
[1748742896615,22.0343071,154.82,154.78,1.6164]
[1748742897023,22.0343071,154.82,154.79,6.46036565]
[1748742897433,6.45740255,154.87,154.79,6.46036565]
[1748742897631,22.0343071,154.81,154.79,6.46036565]
[1748742897812,22.0343071,154.8,154.78,8.07709408]
[1748742898210,6.45740255,154.87,154.78,8.07709408]
[1748742898511,22.0343071,154.83,154.78,8.07709408]
[1748742898717,6.45669513,154.88,154.78,8.07709408]
[1748742898939,22.0343071,154.83,154.78,8.07709408]
[1748742899141,22.0343071,154.83,154.78,42.87870055]
[1748742899336,22.0343071,154.84,154.78,42.87870055]
[1748742899837,22.0343071,154.83,154.78,42.87870055]
[1748742900149,28.49060177,154.89,154.79,18.64964886]
[1748742900150,22.0343071,154.84,154.79,18.64964886]
[1748742900314,6.4987,154.91,154.8,0.14216157]
[1748742900515,22.0343071,154.88,154.8,0.14216157]
[1748742900921,22.0343071,154.87,154.8,0.14216157]
[1748742901140,22.0343071,154.83,154.8,6.45994832]
[1748742901937,22.0343071,154.84,154.78,43.76835761]
[1748742902815,22.0343071,154.82,154.78,1.6164]
[1748742903343,22.0343071,154.82,154.79,6.46036565]
[1748742903957,6.45759506,154.86,154.77,6.46120049]
[1748742904241,6.45661157,154.88,154.77,6.46120049]
[1748742904611,22.0343071,154.82,154.77,6.46120049]